fUST/lending_fUST_20250701
["ID","MTS","AMOUNT","RATE_DAILY","PERIOD"]
[368745909,1751343041083,-1719.17,0.00018436,2]
[368745910,1751343041093,-460.0,0.00018436,2]
[368745911,1751343041103,-511.34,0.00018436,2]
[368745912,1751343041114,-460.0,0.00018436,2]
[368745913,1751343041123,-460.0,0.00018436,2]
[368745914,1751343041133,-460.0,0.00018436,2]
[368745915,1751343041143,-829.0,0.00018436,2]
[368745916,1751343041153,-460.0,0.00018436,2]
[368745917,1751343041163,-460.0,0.00018436,2]
[368745918,1751343041172,-170.45,0.00018436,2]
[368745920,1751343041182,-460.0,0.00018437,2]
[368745922,1751343041192,-460.0,0.00018437,2]
[368745924,1751343041202,-460.0,0.00018437,2]
[368745926,1751343041212,-460.0,0.00018437,2]
[368745928,1751343041222,-405.11533326,0.00018437,2]
[368745929,1751343041232,-500.0,0.00018437,2]
[368745930,1751343041242,-460.0,0.00018437,2]
[368745931,1751343041251,-460.0,0.00018437,2]
[368745932,1751343041264,-193.80757962,0.00018437,2]
[368745933,1751343041275,-460.0,0.00018437,2]
[368745934,1751343041284,-460.0,0.00018437,2]
[368745935,1751343041294,-275.81631002,0.00018437,2]
[368745936,1751343041304,-466.32657441,0.00018437,2]
[368745937,1751343041315,-249.86250535,0.00018437,2]
[368745939,1751343041326,-460.0,0.00018437,2]
[368745941,1751343041338,-463.64784133,0.00018437,2]
[368745943,1751343041348,-460.0,0.00018437,2]
[368745945,1751343041358,-460.0,0.00018437,2]
[368745947,1751343041368,-460.0,0.00018437,2]
[368745949,1751343041377,-460.0,0.00018437,2]
[368745951,1751343041387,-219.65985973,0.00018437,2]
[368745952,1751343041397,-299.33,0.00018437,2]
[368745954,1751343041407,-460.0,0.00018437,2]
[368745956,1751343041416,-500.0,0.00018437,2]
[368745958,1751343041426,-460.0,0.00018437,2]
[368745960,1751343041436,-460.0,0.00018437,2]
[368745962,1751343041446,-460.0,0.00018437,2]
[368745964,1751343041455,-460.0,0.00018437,2]
[368745966,1751343041465,-244.54,0.00018437,2]
[368745968,1751343041475,-460.0,0.00018437,2]
[368745970,1751343041485,-192.98,0.00018437,2]
[368745972,1751343041495,-460.0,0.00018437,2]
[368745974,1751343041505,-460.0,0.00018437,2]
[368745976,1751343041514,-300.0,0.00018437,2]
[368745986,1751343041637,-460.0,0.00018437,2]
[368745987,1751343041661,-460.0,0.00018437,2]
[368745988,1751343041672,-460.0,0.00018437,2]
[368745990,1751343041682,-460.0,0.00018437,2]
[368745992,1751343041693,-460.0,0.00018437,2]
[368745994,1751343041703,-461.85547651,0.00018437,2]
[368745996,1751343041713,-460.0,0.00018437,2]
[368745997,1751343041723,-177.97,0.00018437,2]
[368745999,1751343041733,-1027.53,0.00018437,2]
[368746001,1751343041743,-460.0,0.00018437,2]
[368746003,1751343041752,-460.0,0.00018437,2]
[368746005,1751343041762,-605.97558495,0.00018437,2]
[368746007,1751343041771,-590.04,0.00018437,2]
[368746009,1751343041781,-460.0,0.00018437,2]
[368746011,1751343041791,-502.95499539,0.00018437,2]
[368746013,1751343041801,-460.55,0.00018437,2]
[368746015,1751343041811,-460.0,0.00018437,2]
[368746017,1751343041821,-460.0,0.00018437,2]
[368746019,1751343041831,-2143.77,0.00018437,2]
[368746021,1751343041841,-460.0,0.00018437,2]
[368746023,1751343041851,-460.0,0.00018437,2]
[368746025,1751343041861,-460.0,0.00018437,2]
[368746027,1751343041871,-460.0,0.00018437,2]
[368746029,1751343041880,-460.0,0.00018437,2]
[368746031,1751343041890,-338.16,0.00018437,2]
[368746033,1751343041901,-460.0,0.00018437,2]
[368746035,1751343041910,-460.0,0.00018437,2]
[368746036,1751343041920,-460.0,0.00018437,2]
[368746037,1751343041930,-460.0,0.00018437,2]
[368746038,1751343041940,-460.0,0.00018437,2]
[368746039,1751343041949,-460.0,0.00018437,2]
[368746040,1751343041959,-460.0,0.00018437,2]
[368746041,1751343041970,-460.0,0.00018437,2]
[368746042,1751343041981,-460.0,0.00018437,2]
[368746043,1751343041991,-460.0,0.00018437,2]
[368746044,1751343042001,-460.0,0.00018437,2]
[368746045,1751343042010,-460.0,0.00018437,2]
[368746046,1751343042019,-460.0,0.00018437,2]
[368746047,1751343042029,-562.41,0.00018437,2]
[368746048,1751343042039,-460.0,0.00018437,2]
[368746049,1751343042048,-531.2,0.00018437,2]
[368746050,1751343042059,-460.0,0.00018437,2]
[368746051,1751343042068,-460.0,0.00018437,2]
[368746052,1751343042078,-460.0,0.00018437,2]
[368746053,1751343042088,-460.0,0.00018437,2]
[368746054,1751343042097,-460.0,0.00018437,2]
[368746055,1751343042107,-224.30149413,0.00018438,2]
[368746056,1751343042116,-462.21101823,0.00018438,2]
[368746057,1751343042126,-460.0,0.00018438,2]
[368746058,1751343042135,-460.0,0.00018438,2]
[368746059,1751343042145,-460.0,0.00018438,2]
[368746060,1751343042155,-460.0,0.00018438,2]
[368746061,1751343042165,-541.8,0.00018438,2]
[368746062,1751343042175,-500.0,0.00018438,2]
[368746063,1751343042184,-500.0,0.00018438,2]
[368746064,1751343042194,-500.0,0.00018438,2]
[368746065,1751343042204,-500.0,0.00018438,2]
[368746066,1751343042213,-234.51,0.00018438,2]
[368746067,1751343042223,-460.0,0.00018438,2]
[368746068,1751343042232,-302.39,0.00018438,2]
[368746069,1751343042241,-460.0,0.00018438,2]
[368746070,1751343042250,-175.59,0.00018438,2]
[368746071,1751343042263,-460.0,0.00018438,2]
[368746072,1751343042273,-500.0,0.00018438,2]
[368746073,1751343042283,-460.0,0.00018438,2]
[368746074,1751343042292,-2143.77,0.00018438,2]
[368746075,1751343042303,-2143.77,0.00018438,2]
[368746076,1751343042313,-2528.44,0.00018438,2]
[368746077,1751343042322,-460.0,0.00018438,2]
[368746078,1751343042332,-553.97,0.00018438,2]
[368746079,1751343042343,-608.38,0.00018438,2]
[368746080,1751343042352,-818.56,0.00018438,2]
[368746081,1751343042362,-460.0,0.00018439,2]
[368746082,1751343042372,-438.51630679,0.00018439,2]
[368746083,1751343042381,-460.0,0.00018439,2]
[368746084,1751343042391,-460.0,0.00018439,2]
[368746085,1751343042401,-460.0,0.00018439,2]
[368746086,1751343042411,-460.0,0.00018439,2]
[368746087,1751343042421,-461.30387656,0.00018439,2]
[368746088,1751343042430,-460.0,0.00018439,2]
[368746089,1751343042440,-508.02719566,0.00018439,2]
[368746090,1751343042450,-460.0,0.00018439,2]
[368746091,1751343042459,-460.0,0.00018439,2]
[368746092,1751343042469,-460.0,0.00018439,2]
[368746093,1751343042479,-460.0,0.00018439,2]
[368746094,1751343042489,-460.0,0.00018439,2]
[368746095,1751343042499,-460.0,0.00018439,2]
[368746096,1751343042509,-460.0,0.00018439,2]
[368746097,1751343042518,-539.39696944,0.00018439,2]
[368746098,1751343042528,-460.0,0.00018439,2]
[368746099,1751343042537,-460.0,0.00018439,2]
[368746100,1751343042547,-460.0,0.00018439,2]
[368746101,1751343042556,-460.0,0.00018439,2]
[368746102,1751343042566,-460.0,0.00018439,2]
[368746103,1751343042575,-262.38,0.00018439,2]
[368746104,1751343042585,-460.0,0.00018439,2]
[368746105,1751343042595,-460.0,0.00018439,2]
[368746106,1751343042605,-460.0,0.00018439,2]
[368746107,1751343042614,-500.0,0.00018439,2]
[368746108,1751343042624,-460.0,0.00018439,2]
[368746109,1751343042634,-197.61260308,0.00018439,2]
[368746110,1751343042644,-240.41,0.00018439,2]
[368746111,1751343042653,-496.08,0.00018439,2]
[368746112,1751343042664,-320.14,0.00018439,2]
[368746113,1751343042674,-462.71722731,0.00018439,2]
[368746114,1751343042684,-433.96614382,0.00018439,2]
[368746115,1751343042695,-460.0,0.00018439,2]
[368746116,1751343042704,-460.0,0.00018439,2]
[368746117,1751343042713,-460.0,0.00018439,2]
[368746118,1751343042722,-590.52,0.00018439,2]
[368746119,1751343042731,-500.0,0.00018439,2]
[368746120,1751343042740,-460.0,0.00018439,2]
[368746122,1751343042749,-170.31,0.00018439,2]
[368746123,1751343042759,-478.69220767,0.00018439,2]
[368746124,1751343042768,-500.0,0.00018439,2]
[368746125,1751343042779,-271.04,0.00018439,2]
[368746126,1751343042788,-453.98143036,0.00018439,2]
[368746127,1751343042798,-460.0,0.00018439,2]
[368746128,1751343042807,-460.0,0.00018439,2]
[368746129,1751343042817,-460.0,0.00018439,2]
[368746131,1751343042826,-460.0,0.00018439,2]
[368746133,1751343042835,-460.0,0.00018439,2]
[368746134,1751343042845,-460.0,0.00018439,2]
[368746135,1751343042855,-267.15,0.00018439,2]
[368746136,1751343042865,-462.23493467,0.00018439,2]
[368746139,1751343042874,-460.0,0.00018439,2]
[368746141,1751343042883,-506.04,0.00018439,2]
[368746143,1751343042893,-461.01167266,0.00018439,2]
[368746145,1751343042903,-159.07,0.00018439,2]
[368746146,1751343042912,-460.0,0.00018439,2]
[368746147,1751343042922,-634.27,0.00018439,2]
[368746149,1751343042932,-460.0,0.00018439,2]
[368746151,1751343042941,-485.66,0.00018439,2]
[368746153,1751343042951,-460.0,0.00018439,2]
[368746155,1751343042961,-461.02096885,0.00018439,2]
[368746157,1751343042971,-376.07,0.00018439,2]
[368746159,1751343042980,-460.0,0.00018439,2]
[368746160,1751343042989,-460.0,0.00018439,2]
[368746162,1751343043000,-500.0,0.00018439,2]
[368746164,1751343043009,-500.0,0.00018439,2]
[368746166,1751343043019,-460.0,0.00018439,2]
[368746167,1751343043028,-500.0,0.00018439,2]
[368746169,1751343043038,-2143.77,0.00018439,2]
[368746171,1751343043047,-461.60266783,0.00018439,2]
[368746173,1751343043057,-461.12669702,0.00018439,2]
[368746175,1751343043066,-460.0,0.00018439,2]
[368746177,1751343043076,-460.0,0.00018439,2]
[368746179,1751343043086,-460.0,0.00018439,2]
[368746181,1751343043095,-460.0,0.00018439,2]
[368746183,1751343043105,-460.0,0.00018439,2]
[368746185,1751343043114,-460.0,0.00018439,2]
[368746188,1751343043124,-460.0,0.00018439,2]
[368746190,1751343043133,-460.0,0.00018439,2]
[368746192,1751343043142,-458.21116539,0.0001844,2]
[368746194,1751343043152,-460.0,0.0001844,2]
[368746196,1751343043161,-340.3627556,0.0001844,2]
[368746198,1751343043171,-461.68268358,0.0001844,2]
[368746200,1751343043180,-458.33419329,0.0001844,2]
[368746201,1751343043190,-304.72654256,0.0001844,2]
[368746204,1751343043200,-246.59,0.0001844,2]
[368746206,1751343043214,-193.52,0.0001844,2]
[368746208,1751343043223,-173.11,0.0001844,2]
[368746210,1751343043233,-500.0,0.0001844,2]
[368746212,1751343043243,-566.33,0.0001844,2]
[368746214,1751343043253,-566.33,0.0001844,2]
[368746216,1751343043265,-566.33,0.0001844,2]
[368746218,1751343043274,-252.79,0.0001844,2]
[368746220,1751343043284,-252.54,0.0001844,2]
[368746222,1751343043293,-460.0,0.0001844,2]
[368746224,1751343043302,-460.0,0.0001844,2]
[368746226,1751343043312,-460.0,0.0001844,2]
[368746228,1751343043321,-460.0,0.0001844,2]
[368746230,1751343043333,-460.0,0.0001844,2]
[368746232,1751343043343,-500.0,0.0001844,2]
[368746234,1751343043352,-604.39,0.0001844,2]
[368746236,1751343043362,-460.0,0.0001844,2]
[368746238,1751343043372,-460.0,0.0001844,2]
[368746241,1751343043381,-460.0,0.0001844,2]
[368746244,1751343043391,-460.0,0.0001844,2]
[368746246,1751343043403,-460.0,0.0001844,2]
[368746248,1751343043412,-460.0,0.0001844,2]
[368746250,1751343043422,-586.00837693,0.0001844,2]
[368746252,1751343043431,-2143.77,0.0001844,2]
[368746254,1751343043441,-466.23606517,0.0001844,2]
[368746256,1751343043451,-461.45922202,0.00018441,2]
[368746258,1751343043461,-163.32771035,0.00018441,2]
[368746260,1751343043471,-546.36,0.00018441,2]
[368746262,1751343043480,-460.0,0.00018441,2]
[368746264,1751343043490,-460.0,0.00018441,2]
[368746266,1751343043499,-460.0,0.00018441,2]
[368746268,1751343043509,-460.0,0.00018441,2]
[368746270,1751343043518,-460.0,0.00018441,2]
[368746272,1751343043528,-460.0,0.00018441,2]
[368746274,1751343043537,-460.0,0.00018441,2]
[368746276,1751343043546,-460.0,0.00018441,2]
[368746278,1751343043556,-460.0,0.00018441,2]
[368746280,1751343043566,-460.0,0.00018441,2]
[368746282,1751343043575,-460.0,0.00018441,2]
[368746284,1751343043585,-566.33,0.00018441,2]
[368746286,1751343043595,-460.0,0.00018441,2]
[368746288,1751343043604,-460.0,0.00018441,2]
[368746290,1751343043615,-461.19075436,0.00018441,2]
[368746292,1751343043625,-566.33,0.00018443,2]
[368746294,1751343043634,-566.33,0.00018445,2]
[368746296,1751343043645,-1085.05120722,0.00018649,2]
[368746298,1751343043655,-708.76833836,0.00018675,2]
[368746300,1751343043664,-150.31,0.00018709,2]
[368746302,1751343043674,-460.0,0.00018709,2]
[368746304,1751343043684,-1004.99,0.00018709,2]
[368746306,1751343043693,-460.0,0.00018709,2]
[368746308,1751343043703,-469.95,0.0001871,2]
[368746310,1751343043712,-460.0,0.0001871,2]
[368746312,1751343043722,-486.4,0.0001871,2]
[368746314,1751343043731,-460.0,0.0001871,2]
[368746316,1751343043741,-460.0,0.0001871,2]
[368746318,1751343043751,-1208.78,0.0001871,2]
[368746320,1751343043760,-1145.39,0.0001871,2]
[368746322,1751343043771,-460.0,0.0001871,2]
[368746324,1751343043780,-312.22,0.0001871,2]
[368746326,1751343043790,-1235.91,0.0001871,2]
[368746328,1751343043799,-1474.29,0.0001871,2]
[368746330,1751343043808,-1719.17,0.0001871,2]
[368746332,1751343043818,-460.0,0.0001871,2]
[368746334,1751343043827,-511.34,0.0001871,2]
[368746336,1751343043837,-112.15579385,0.0001871,2]
[368746349,1751343043957,-413.20420615,0.0001871,2]
[368746351,1751343043968,-460.0,0.0001871,2]
[368746353,1751343043977,-206.10223469,0.0001871,2]
[368746357,1751343044095,-253.89776531,0.0001871,2]
[368746358,1751343044105,-132.25285998,0.0001871,2]
[368746359,1751343044117,-696.74714002,0.0001871,2]
[368746360,1751343044127,-460.0,0.0001871,2]
[368746361,1751343044136,-460.0,0.0001871,2]
[368746362,1751343044146,-460.0,0.00018711,2]
[368746363,1751343044157,-460.0,0.00018711,2]
[368746364,1751343044167,-460.0,0.00018711,2]
[368746365,1751343044176,-543.63,0.00018711,2]
[368746366,1751343044185,-460.0,0.00018711,2]
[368746367,1751343044195,-460.0,0.00018711,2]
[368746368,1751343044205,-434.76,0.00018711,2]
[368746369,1751343044215,-460.0,0.00018711,2]
[368746370,1751343044224,-460.0,0.00018711,2]
[368746371,1751343044234,-556.85,0.00018711,2]
[368746372,1751343044243,-460.0,0.00018711,2]
[368746373,1751343044253,-460.0,0.00018711,2]
[368746374,1751343044265,-460.0,0.00018711,2]
[368746375,1751343044275,-460.0,0.00018711,2]
[368746376,1751343044285,-460.0,0.00018711,2]
[368746377,1751343044295,-460.0,0.00018711,2]
[368746378,1751343044305,-190.34,0.00018711,2]
[368746379,1751343044315,-460.0,0.00018711,2]
[368746381,1751343044324,-1027.53,0.00018711,2]
[368746383,1751343044335,-460.0,0.00018711,2]
[368746385,1751343044345,-183.39,0.00018711,2]
[368746387,1751343044354,-460.0,0.00018711,2]
[368746389,1751343044364,-460.0,0.00018711,2]
[368746391,1751343044374,-187.91,0.00018711,2]
[368746393,1751343044384,-460.0,0.00018711,2]
[368746395,1751343044393,-460.0,0.00018711,2]
[368746397,1751343044404,-153.04,0.00018711,2]
[368746399,1751343044414,-460.0,0.00018711,2]
[368746401,1751343044424,-460.0,0.00018711,2]
[368746403,1751343044434,-171.27,0.00018711,2]
[368746405,1751343044445,-256.11,0.00018711,2]
[368746406,1751343044455,-409.8,0.00018711,2]
[368746407,1751343044466,-460.0,0.00018711,2]
[368746408,1751343044477,-275.39,0.00018711,2]
[368746409,1751343044486,-460.0,0.00018711,2]
[368746410,1751343044496,-460.0,0.00018711,2]
[368746411,1751343044507,-257.39,0.00018711,2]
[368746413,1751343044518,-460.0,0.00018711,2]
[368746414,1751343044528,-539.48,0.00018712,2]
[368746416,1751343044537,-337.86664903,0.00018712,2]
[368746417,1751343044547,-324.42349375,0.00018712,2]
[368746418,1751343044680,-175.57650625,0.00018712,2]
[368746419,1751343044689,-460.0,0.00018712,2]
[368746420,1751343044699,-460.0,0.00018712,2]
[368746421,1751343044709,-460.0,0.00018712,2]
[368746422,1751343044719,-2143.77,0.00018712,2]
[368746423,1751343044730,-166.31203734,0.00018712,2]
[368746424,1751343044741,-2362.12796266,0.00018712,2]
[368746425,1751343044752,-460.0,0.00018712,2]
[368746426,1751343044762,-553.97,0.00018712,2]
[368746427,1751343044771,-302.4871562,0.00018712,2]
[368746428,1751343044787,-305.8928438,0.00018712,2]
[368746429,1751343044796,-555.98016808,0.00018712,2]
[368746430,1751343045259,-260.07143596,0.00018163,2]
[368746431,1751343045467,-199.92856404,0.00018163,2]
[368746432,1751343045478,-296.67228965,0.00018165,2]
[368746433,1751343045488,-262.57983192,0.00018712,2]
[368746434,1751343045499,-530.98,0.00018713,2]
[368746435,1751343045508,-460.0,0.00018713,2]
[368746436,1751343045518,-460.0,0.00018713,2]
[368746437,1751343045527,-511.50576798,0.00018713,2]
[368746438,1751343045537,-390.12149731,0.00018713,2]
[368746439,1751343045547,-460.0,0.00018713,2]
[368746441,1751343045557,-460.0,0.00018713,2]
[368746443,1751343045567,-460.0,0.00018713,2]
[368746444,1751343045576,-460.0,0.00018713,2]
[368746445,1751343045587,-460.0,0.00018713,2]
[368746446,1751343045597,-281.54,0.00018713,2]
[368746447,1751343045606,-386.73,0.00018713,2]
[368746448,1751343045617,-385.68,0.00018713,2]
[368746449,1751343045627,-460.0,0.00018713,2]
[368746450,1751343045636,-500.0,0.00018713,2]
[368746451,1751343045646,-460.0,0.00018713,2]
[368746452,1751343045655,-460.0,0.00018713,2]
[368746453,1751343045664,-464.26,0.00018713,2]
[368746454,1751343045674,-460.0,0.00018713,2]
[368746455,1751343045683,-634.27,0.00018713,2]
[368746456,1751343045693,-460.0,0.00018713,2]
[368746457,1751343045702,-2143.77,0.00018713,2]
[368746458,1751343045712,-460.0,0.00018713,2]
[368746459,1751343045721,-460.0,0.00018713,2]
[368746460,1751343045730,-566.33,0.00018714,2]
[368746461,1751343045740,-201.43,0.00018714,2]
[368746462,1751343045749,-175.06,0.00018714,2]
[368746463,1751343045759,-460.0,0.00018714,2]
[368746464,1751343045768,-557.84,0.00018714,2]
[368746465,1751343045778,-460.0,0.00018714,2]
[368746466,1751343045787,-460.0,0.00018715,2]
[368746467,1751343045797,-460.0,0.00018715,2]
[368746468,1751343045807,-460.0,0.00018715,2]
[368746469,1751343045816,-460.0,0.00018715,2]
[368746470,1751343045826,-460.0,0.00018715,2]
[368746471,1751343045836,-460.85420316,0.00018715,2]
[368746472,1751343045845,-460.0,0.00018715,2]
[368746473,1751343045855,-566.33,0.00018715,2]
[368746474,1751343045865,-460.0,0.00018715,2]
[368746475,1751343045874,-566.33,0.00018717,2]
[368746476,1751343045884,-392.74507616,0.000189,2]
[368746477,1751343045894,-176.62864773,0.00018983,2]
[368746478,1751343045903,-1004.99,0.00018983,2]
[368746479,1751343045912,-335.38163437,0.00018983,2]
[368746480,1751343045922,-460.0,0.00018984,2]
[368746481,1751343045932,-1208.78,0.00018984,2]
[368746482,1751343045941,-1145.39,0.00018984,2]
[368746483,1751343045952,-460.0,0.00018984,2]
[368746484,1751343045962,-1235.91,0.00018984,2]
[368746485,1751343045973,-1474.29,0.00018984,2]
[368746486,1751343045982,-1719.17,0.00018984,2]
[368746487,1751343045992,-460.0,0.00018984,2]
[368746488,1751343046003,-511.34,0.00018984,2]
[368746489,1751343046014,-460.0,0.00018984,2]
[368746490,1751343046024,-210.15,0.00018984,2]
[368746491,1751343046034,-829.0,0.00018984,2]
[368746492,1751343046044,-460.0,0.00018984,2]
[368746493,1751343046054,-460.0,0.00018984,2]
[368746494,1751343046064,-513.95743758,0.00018985,2]
[368746495,1751343046073,-460.0,0.00018985,2]
[368746496,1751343046082,-460.0,0.00018985,2]
[368746497,1751343046092,-460.0,0.00018985,2]
[368746498,1751343046101,-460.0,0.00018985,2]
[368746499,1751343046110,-460.0,0.00018985,2]
[368746500,1751343046119,-460.0,0.00018985,2]
[368746501,1751343046131,-460.0,0.00018985,2]
[368746502,1751343046140,-1027.53,0.00018985,2]
[368746503,1751343046150,-297.85,0.00018985,2]
[368746504,1751343046159,-460.0,0.00018985,2]
[368746505,1751343046168,-584.91,0.00018985,2]
[368746506,1751343046178,-460.0,0.00018985,2]
[368746507,1751343046187,-460.0,0.00018985,2]
[368746508,1751343046197,-460.0,0.00018985,2]
[368746509,1751343046207,-460.0,0.00018985,2]
[368746510,1751343046217,-460.0,0.00018985,2]
[368746511,1751343046226,-500.0,0.00018986,2]
[368746512,1751343046235,-460.0,0.00018986,2]
[368746513,1751343046245,-460.0,0.00018986,2]
[368746514,1751343046255,-460.0,0.00018986,2]
[368746515,1751343046268,-2143.77,0.00018986,2]
[368746516,1751343046278,-2528.44,0.00018986,2]
[368746517,1751343046287,-460.0,0.00018986,2]
[368746518,1751343046297,-553.97,0.00018986,2]
[368746520,1751343046307,-608.38,0.00018986,2]
[368746522,1751343046317,-818.56,0.00018986,2]
[368746524,1751343046327,-460.0,0.00018987,2]
[368746526,1751343046336,-295.39,0.00018987,2]
[368746528,1751343046345,-460.0,0.00018987,2]
[368746530,1751343046355,-460.0,0.00018987,2]
[368746532,1751343046364,-484.06,0.00018987,2]
[368746534,1751343046374,-213.78,0.00018987,2]
[368746536,1751343046383,-634.27,0.00018987,2]
[368746538,1751343046393,-460.0,0.00018987,2]
[368746540,1751343046402,-460.0,0.00018987,2]
[368746551,1751343046507,-460.0,0.00018987,2]
[368746553,1751343046517,-566.33,0.00018988,2]
[368746555,1751343046527,-258.04,0.00018988,2]
[368746557,1751343046536,-460.0,0.00018989,2]
[368746559,1751343046545,-566.33,0.00018989,2]
[368746561,1751343046554,-566.33,0.00018999,2]
[368746563,1751343046564,-151.0,0.00018999,2]
[368746565,1751343046573,-151.0,0.00018999,2]
[368746567,1751343046582,-151.0,0.00018999,2]
[368746569,1751343046591,-302.75782099,0.00019,2]
[368746571,1751343046601,-567.39719298,0.00019034,2]
[368746573,1751343046610,-518.28574618,0.00019178,7]
[368746575,1751343046620,-251.72941,0.00019178,2]
[368746577,1751343046630,-275.45931262,0.0001919,2]
[368746579,1751343046640,-1085.05120722,0.00019233,2]
[368746581,1751343046650,-151.0,0.00019246,2]
[368746583,1751343046660,-151.0,0.00019246,2]
[368746585,1751343046669,-151.0,0.00019246,2]
[368746587,1751343046679,-151.0,0.00019246,2]
[368746589,1751343046689,-160.0,0.00019246,2]
[368746591,1751343046698,-160.0,0.00019246,2]
[368746593,1751343046708,-213.87551669,0.00019246,2]
[368746595,1751343046717,-847.53272281,0.00019246,2]
[368746597,1751343046727,-160.0,0.00019246,2]
[368746599,1751343046737,-837.20943635,0.00019246,2]
[368746601,1751343046746,-160.0,0.00019246,2]
[368746604,1751343046756,-160.0,0.00019246,2]
[368746606,1751343046765,-160.0,0.00019246,2]
[368746608,1751343046775,-215.01728679,0.00019246,2]
[368746610,1751343046784,-160.0,0.00019246,2]
[368746612,1751343046793,-12571.40790328,0.00019246,2]
[368746614,1751343046802,-230.32585361,0.00019246,2]
[368746616,1751343046813,-160.0,0.00019246,2]
[368746618,1751343046822,-160.0,0.00019246,2]
[368746620,1751343046831,-1004.99,0.00019257,2]
[368746622,1751343046841,-541.74,0.00019258,2]
[368746624,1751343046850,-1208.78,0.00019258,2]
[368746626,1751343046862,-1145.39,0.00019258,2]
[368746628,1751343046871,-460.0,0.00019258,2]
[368746630,1751343046880,-1235.91,0.00019258,2]
[368746632,1751343046890,-1474.29,0.00019258,2]
[368746634,1751343046899,-1719.17,0.00019258,2]
[368746636,1751343046909,-194.20886842,0.00019258,2]
[368746638,1751343046919,-511.34,0.00019258,2]
[368746640,1751343046928,-460.0,0.00019258,2]
[368746642,1751343046938,-829.0,0.00019258,2]
[368746644,1751343046948,-279.47877337,0.00019258,2]
[368746646,1751343046958,-460.0,0.00019258,2]
[368746648,1751343046967,-500.0,0.00019259,2]
[368746650,1751343046976,-379.24490066,0.00019259,2]
[368746653,1751343046990,-80.75509934,0.00019259,2]
[368746655,1751343046999,-575.54,0.00019259,2]
[368746657,1751343047008,-460.0,0.00019259,2]
[368746659,1751343047018,-460.0,0.00019259,2]
[368746661,1751343047027,-460.0,0.00019259,2]
[368746663,1751343047038,-510.18,0.00019259,2]
[368746665,1751343047048,-1027.53,0.00019259,2]
[368746667,1751343047057,-153.2882101,0.00019259,2]
[368746744,1751343128810,160.0,0.00016438,3]
[368746745,1751343158950,298.671924,0.00013699,2]
[368746746,1751343160796,-281.59543759,0.00018064,2]
[368746747,1751343163045,-143.95245718,0.00018064,2]
[368746748,1751343163067,-57.02720997,0.00018064,2]
[368746749,1751343168179,-124.91346071,0.00018064,2]
[368746752,1751343193802,7220.7486688,0.00017164,2]
[368746758,1751343443867,161.0,0.00016438,3]
[368746759,1751343451406,-237.96593188,0.00018061,2]
[368746760,1751343454292,-173.12570085,0.00018061,2]
[368746761,1751343457056,-97.8122049,0.00018061,2]
[368746762,1751343457079,-53.67278337,0.00018062,2]
[368746763,1751343460553,-165.95334301,0.00018062,2]
[368746765,1751343537593,-160.0,0.00018159,2]